{"text_format":"3","workbook":"xlsx","n_sheets":5,"sheets":["Year 1","Year 2","Year 3","Year 4","Year 5"],"read":"whole","date_system":"1900"}

{"sheet":"Year 1","index":0,"n_rows":48,"n_cols":22,"rows_kept":48,"merged":[[2,1,2,18],[3,1,3,18],[4,1,4,18],[8,1,8,18],[9,1,9,18],[12,2,12,18],[14,3,14,10],[14,12,14,14],[15,1,18,1],[15,18,18,18],[15,20,18,20],[15,21,18,21],[47,1,52,19]]}
[]
[]
[null,"ANNEXURE D - PRICING SCHEDULE"]
[null,"The Appointment of Service Provider to Provide Seasonal Casual Workers at the CSIR Conferencing and Accommodation on an “As and When” Required Basis for a Period of Five (05) years"]
[null,"RFP 0000/15/08/2025"]
[]
[]
[]
[null,"Notes:\n1. Bidders must note the detailed scope of services as outlined in the RFP document.\n2. CSIR reserves the right to negotiate rates with the recommended bidder.\n3. The rates MUST be inclusive of all service offering for Year 1-5 (Information must be populated in year 1 to year 5 sheets). \n4.This is a competitive bidding process, and the most competitive bidders will be considered for the appointment\n5. Bidders can provide comments, assumptions and any points of clarification on a separate letter as an Annexure to their pricing submission, and this should be done in their company letterhead. (Comments, assumptions and any points of clarification must be attached to the pricing template)\n6. Bidders are not allowed to change the format of this pricing template; any changes to the template by the bidders may result in their bid being non-responsive.\n"]
[]
[]
[]
[null,"BIDDER'S NAME:"]
[]
[{"$nulls":3},"Employee Benefits",{"$nulls":8},"Statutory Costs"]
[null,"Position","Hourly","Leave","Fam Resp","Sick","Public","Severance","PI","Uniforms","Transport","Hourly Rate","UIF","COID","Skills","Statutory","Total Cost","Operations","Management Fee","Total","Unconditional/Trade discounts","Total Hourly Charge Including all fees (less unconditional discounts)"]
[null,null,"Rate","Pay","Leave","Leave","Holiday","Pay","Cover",null,null,"Including",null,"/WCA","Dev","Costs","of Employee","Cost",null,"Hourly Charge"]
[null,null,"Paid to","Provision","Provision","Provision","Provision",{"$nulls":4},"Employee",null,null,"Levy","Sub Total",{"$nulls":3},"Including"]
[null,null,"Employee",{"$nulls":8},"Benefits",{"$nulls":7},"all fees"]
[null,"Chef de partie",{"$nulls":9},{"$f":"SUM(C20:K20)","v":{"v":0,"d":"R 0.00"}},{"$nulls":3},{"$f":"SUM(M20:O20)","v":{"v":0,"d":"R 0.00"}},{"$f":"+L20+P20","v":{"v":0,"d":"R 0.00"}},null,null,{"$f":"SUM($Q20:$S20)","v":{"v":0,"d":"R 0.00"}},null,{"$f":"T20-U20","v":{"v":0,"d":"R 0.00"}}]
[null,"Stores Assistant",{"$nulls":9},{"$f":"SUM(C21:K21)","v":{"v":0,"d":"R 0.00"}},{"$nulls":3},{"$f":"SUM(M21:O21)","v":{"v":0,"d":"R 0.00"}},{"$f":"+L21+P21","v":{"v":0,"d":"R 0.00"}},null,null,{"$f":"SUM($Q21:$S21)","v":{"v":0,"d":"R 0.00"}},null,{"$f":"T21-U21","v":{"v":0,"d":"R 0.00"}}]
[null,"Food & Beverage Buyer",{"$nulls":9},{"v":0,"d":"R 0.00"},{"$nulls":3},{"v":0,"d":"R 0.00"},{"v":0,"d":"R 0.00"},null,null,{"$f":"SUM($Q22:$S22)","v":{"v":0,"d":"R 0.00"}},null,{"v":0,"d":"R 0.00"}]
[null,"Receptionist",{"$nulls":9},{"v":0,"d":"R 0.00"},{"$nulls":3},{"v":0,"d":"R 0.00"},{"v":0,"d":"R 0.00"},null,null,{"v":0,"d":"R 0.00"},null,{"v":0,"d":"R 0.00"}]
[null,"Parking  Marshall",{"$nulls":9},{"v":0,"d":"R 0.00"},{"$nulls":3},{"v":0,"d":"R 0.00"},{"v":0,"d":"R 0.00"},null,null,{"v":0,"d":"R 0.00"},null,{"v":0,"d":"R 0.00"}]
[null,"Laundry Staff",{"$nulls":9},{"v":0,"d":"R 0.00"},{"$nulls":3},{"v":0,"d":"R 0.00"},{"v":0,"d":"R 0.00"},null,null,{"v":0,"d":"R 0.00"},null,{"v":0,"d":"R 0.00"}]
[null,"Food Service assistants",{"$nulls":9},{"v":0,"d":"R 0.00"},{"$nulls":3},{"v":0,"d":"R 0.00"},{"v":0,"d":"R 0.00"},null,null,{"v":0,"d":"R 0.00"},null,{"v":0,"d":"R 0.00"}]
[null,"Safety Administrative Assistant",{"$nulls":9},{"v":0,"d":"R 0.00"},{"$nulls":3},{"v":0,"d":"R 0.00"},{"v":0,"d":"R 0.00"},null,null,{"v":0,"d":"R 0.00"},null,{"v":0,"d":"R 0.00"}]
[null,"Housemen",{"$nulls":9},{"v":0,"d":"R 0.00"},{"$nulls":3},{"v":0,"d":"R 0.00"},{"v":0,"d":"R 0.00"},null,null,{"v":0,"d":"R 0.00"},null,{"v":0,"d":"R 0.00"}]
[null,"Cleaning Staff",{"$nulls":9},{"v":0,"d":"R 0.00"},{"$nulls":3},{"v":0,"d":"R 0.00"},{"v":0,"d":"R 0.00"},null,null,{"v":0,"d":"R 0.00"},null,{"v":0,"d":"R 0.00"}]
[null,"Commi Chef",{"$nulls":9},{"v":0,"d":"R 0.00"},{"$nulls":3},{"v":0,"d":"R 0.00"},{"v":0,"d":"R 0.00"},null,null,{"v":0,"d":"R 0.00"},null,{"v":0,"d":"R 0.00"}]
[null," Sous Chef",{"$nulls":9},{"v":0,"d":"R 0.00"},{"$nulls":3},{"v":0,"d":"R 0.00"},{"v":0,"d":"R 0.00"},null,null,{"v":0,"d":"R 0.00"},null,{"v":0,"d":"R 0.00"}]
[null,"Events coordinator",{"$nulls":9},{"v":0,"d":"R 0.00"},{"$nulls":3},{"v":0,"d":"R 0.00"},{"v":0,"d":"R 0.00"},null,null,{"v":0,"d":"R 0.00"},null,{"v":0,"d":"R 0.00"}]
[null,"Marketing coordinator",{"$nulls":9},{"v":0,"d":"R 0.00"},{"$nulls":3},{"v":0,"d":"R 0.00"},{"v":0,"d":"R 0.00"},null,null,{"v":0,"d":"R 0.00"},null,{"v":0,"d":"R 0.00"}]
[null,"Waitron & Barmen ",{"$nulls":9},{"v":0,"d":"R 0.00"},{"$nulls":3},{"v":0,"d":"R 0.00"},{"v":0,"d":"R 0.00"},null,null,{"v":0,"d":"R 0.00"},null,{"v":0,"d":"R 0.00"}]
[null,"Waste sorter",{"$nulls":9},{"v":0,"d":"R 0.00"},{"$nulls":3},{"v":0,"d":"R 0.00"},{"v":0,"d":"R 0.00"},null,null,{"v":0,"d":"R 0.00"},null,{"v":0,"d":"R 0.00"}]
[null," Golf cart / shuttle driver",{"$nulls":9},{"v":0,"d":"R 0.00"},{"$nulls":3},{"v":0,"d":"R 0.00"},{"v":0,"d":"R 0.00"},null,null,{"v":0,"d":"R 0.00"},null,{"v":0,"d":"R 0.00"}]
[]
[null,"Item description","Amount (Inc VAT)"]
[null,"Safety File (Once-off)"]
[]
[null,"Definition of discounts"]
[]
[null,"A settlement discount is where a business offers the CSIR a discount when an invoice is paid on time or within 45 days from receipt of statement."]
[]
[null,"A trade discount is defined as a type of discount that is cut off the retail or proposal price of an item. The discount is immediately deducted from the proposal price"]
[]
[]
[null,"Notes:"]

{"sheet":"Year 2","index":1,"n_rows":46,"n_cols":22,"rows_kept":46,"merged":[[2,1,2,18],[3,1,3,18],[4,1,4,18],[8,1,8,18],[9,1,9,18],[12,2,12,18],[14,3,14,10],[14,12,14,14],[15,1,18,1],[15,18,18,18],[15,20,18,20],[15,21,18,21],[45,1,50,19]]}
[]
[]
[null,"ANNEXURE D - PRICING SCHEDULE"]
[null,"The Appointment of Service Provider to Provide Seasonal Casual Workers at the CSIR Conferencing and Accommodation on an “As and When” Required Basis for a Period of Five (05) years"]
[null,"RFP 0000/15/08/2025"]
[]
[]
[]
[null,"Notes:\n1. Bidders must note the detailed scope of services as outlined in the RFP document.\n2. CSIR reserves the right to negotiate rates with the recommended bidder.\n3. The rates MUST be inclusive of all service offering for Year 1-5 (Information must be populated in year 1 to year 5 sheets). \n4.This is a competitive bidding process, and the most competitive bidders will be considered for the appointment\n5. Bidders can provide comments, assumptions and any points of clarification on a separate letter as an Annexure to their pricing submission, and this should be done in their company letterhead. (Comments, assumptions and any points of clarification must be attached to the pricing template)\n6. Bidders are not allowed to change the format of this pricing template; any changes to the template by the bidders may result in their bid being non-responsive.\n"]
[]
[]
[]
[null,"BIDDER'S NAME:"]
[]
[{"$nulls":3},"Employee Benefits",{"$nulls":8},"Statutory Costs"]
[null,"Position","Hourly","Leave","Fam Resp","Sick","Public","Severance","PI","Uniforms","Transport","Hourly Rate","UIF","COID","Skills","Statutory","Total Cost","Operations","Management Fee","Total","Unconditional/Trade discounts","Total Hourly Charge Including all fees (less unconditional discounts)"]
[null,null,"Rate","Pay","Leave","Leave","Holiday","Pay","Cover",null,null,"Including",null,"/WCA","Dev","Costs","of Employee","Cost",null,"Hourly Charge"]
[null,null,"Paid to","Provision","Provision","Provision","Provision",{"$nulls":4},"Employee",null,null,"Levy","Sub Total",{"$nulls":3},"Including"]
[null,null,"Employee",{"$nulls":8},"Benefits",{"$nulls":7},"all fees"]
[null,"Chef de partie",{"$nulls":9},{"$f":"SUM(C20:K20)","v":{"v":0,"d":"R 0.00"}},{"$nulls":3},{"$f":"SUM(M20:O20)","v":{"v":0,"d":"R 0.00"}},{"$f":"+L20+P20","v":{"v":0,"d":"R 0.00"}},null,null,{"$f":"SUM($Q20:$S20)","v":{"v":0,"d":"R 0.00"}},null,{"$f":"T20-U20","v":{"v":0,"d":"R 0.00"}}]
[null,"Stores Assistant",{"$nulls":9},{"$f":"SUM(C21:K21)","v":{"v":0,"d":"R 0.00"}},{"$nulls":3},{"$f":"SUM(M21:O21)","v":{"v":0,"d":"R 0.00"}},{"$f":"+L21+P21","v":{"v":0,"d":"R 0.00"}},null,null,{"$f":"SUM($Q21:$S21)","v":{"v":0,"d":"R 0.00"}},null,{"$f":"T21-U21","v":{"v":0,"d":"R 0.00"}}]
[null,"Food & Beverage Buyer",{"$nulls":9},{"v":0,"d":"R 0.00"},{"$nulls":3},{"v":0,"d":"R 0.00"},{"v":0,"d":"R 0.00"},null,null,{"$f":"SUM($Q22:$S22)","v":{"v":0,"d":"R 0.00"}},null,{"v":0,"d":"R 0.00"}]
[null,"Receptionist",{"$nulls":9},{"v":0,"d":"R 0.00"},{"$nulls":3},{"v":0,"d":"R 0.00"},{"v":0,"d":"R 0.00"},null,null,{"v":0,"d":"R 0.00"},null,{"v":0,"d":"R 0.00"}]
[null,"Parking  Marshall",{"$nulls":9},{"v":0,"d":"R 0.00"},{"$nulls":3},{"v":0,"d":"R 0.00"},{"v":0,"d":"R 0.00"},null,null,{"v":0,"d":"R 0.00"},null,{"v":0,"d":"R 0.00"}]
[null,"Laundry Staff",{"$nulls":9},{"v":0,"d":"R 0.00"},{"$nulls":3},{"v":0,"d":"R 0.00"},{"v":0,"d":"R 0.00"},null,null,{"v":0,"d":"R 0.00"},null,{"v":0,"d":"R 0.00"}]
[null,"Food Service assistants",{"$nulls":9},{"v":0,"d":"R 0.00"},{"$nulls":3},{"v":0,"d":"R 0.00"},{"v":0,"d":"R 0.00"},null,null,{"v":0,"d":"R 0.00"},null,{"v":0,"d":"R 0.00"}]
[null,"Safety Administrative Assistant",{"$nulls":9},{"v":0,"d":"R 0.00"},{"$nulls":3},{"v":0,"d":"R 0.00"},{"v":0,"d":"R 0.00"},null,null,{"v":0,"d":"R 0.00"},null,{"v":0,"d":"R 0.00"}]
[null,"Housemen",{"$nulls":9},{"v":0,"d":"R 0.00"},{"$nulls":3},{"v":0,"d":"R 0.00"},{"v":0,"d":"R 0.00"},null,null,{"v":0,"d":"R 0.00"},null,{"v":0,"d":"R 0.00"}]
[null,"Cleaning Staff",{"$nulls":9},{"v":0,"d":"R 0.00"},{"$nulls":3},{"v":0,"d":"R 0.00"},{"v":0,"d":"R 0.00"},null,null,{"v":0,"d":"R 0.00"},null,{"v":0,"d":"R 0.00"}]
[null,"Commi Chef",{"$nulls":9},{"v":0,"d":"R 0.00"},{"$nulls":3},{"v":0,"d":"R 0.00"},{"v":0,"d":"R 0.00"},null,null,{"v":0,"d":"R 0.00"},null,{"v":0,"d":"R 0.00"}]
[null," Sous Chef",{"$nulls":9},{"v":0,"d":"R 0.00"},{"$nulls":3},{"v":0,"d":"R 0.00"},{"v":0,"d":"R 0.00"},null,null,{"v":0,"d":"R 0.00"},null,{"v":0,"d":"R 0.00"}]
[null,"Events coordinator",{"$nulls":9},{"v":0,"d":"R 0.00"},{"$nulls":3},{"v":0,"d":"R 0.00"},{"v":0,"d":"R 0.00"},null,null,{"v":0,"d":"R 0.00"},null,{"v":0,"d":"R 0.00"}]
[null,"Marketing coordinator",{"$nulls":9},{"v":0,"d":"R 0.00"},{"$nulls":3},{"v":0,"d":"R 0.00"},{"v":0,"d":"R 0.00"},null,null,{"v":0,"d":"R 0.00"},null,{"v":0,"d":"R 0.00"}]
[null,"Waitron & Barmen ",{"$nulls":9},{"v":0,"d":"R 0.00"},{"$nulls":3},{"v":0,"d":"R 0.00"},{"v":0,"d":"R 0.00"},null,null,{"v":0,"d":"R 0.00"},null,{"v":0,"d":"R 0.00"}]
[null,"Waste sorter",{"$nulls":9},{"v":0,"d":"R 0.00"},{"$nulls":3},{"v":0,"d":"R 0.00"},{"v":0,"d":"R 0.00"},null,null,{"v":0,"d":"R 0.00"},null,{"v":0,"d":"R 0.00"}]
[null," Golf cart / shuttle driver",{"$nulls":9},{"v":0,"d":"R 0.00"},{"$nulls":3},{"v":0,"d":"R 0.00"},{"v":0,"d":"R 0.00"},null,null,{"v":0,"d":"R 0.00"},null,{"v":0,"d":"R 0.00"}]
[]
[]
[null,"Definition of discounts"]
[]
[null,"A settlement discount is where a business offers the CSIR a discount when an invoice is paid on time or within 45 days from receipt of statement."]
[]
[null,"A trade discount is defined as a type of discount that is cut off the retail or proposal price of an item. The discount is immediately deducted from the proposal price"]
[]
[]
[null,"Notes:"]

{"sheet":"Year 3","index":2,"n_rows":46,"n_cols":22,"rows_kept":46,"merged":[[2,1,2,18],[3,1,3,18],[4,1,4,18],[8,1,8,18],[9,1,9,18],[12,2,12,18],[14,3,14,10],[14,12,14,14],[15,1,18,1],[15,18,18,18],[15,20,18,20],[15,21,18,21],[45,1,50,19]]}
[]
[]
[null,"ANNEXURE D - PRICING SCHEDULE"]
[null,"The Appointment of Service Provider to Provide Seasonal Casual Workers at the CSIR Conferencing and Accommodation on an “As and When” Required Basis for a Period of Five (05) years"]
[null,"RFP 0000/15/08/2025"]
[]
[]
[]
[null,"Notes:\n1. Bidders must note the detailed scope of services as outlined in the RFP document.\n2. CSIR reserves the right to negotiate rates with the recommended bidder.\n3. The rates MUST be inclusive of all service offering for Year 1-5 (Information must be populated in year 1 to year 5 sheets). \n4.This is a competitive bidding process, and the most competitive bidders will be considered for the appointment\n5. Bidders can provide comments, assumptions and any points of clarification on a separate letter as an Annexure to their pricing submission, and this should be done in their company letterhead. (Comments, assumptions and any points of clarification must be attached to the pricing template)\n6. Bidders are not allowed to change the format of this pricing template; any changes to the template by the bidders may result in their bid being non-responsive.\n"]
[]
[]
[]
[null,"BIDDER'S NAME:"]
[]
[{"$nulls":3},"Employee Benefits",{"$nulls":8},"Statutory Costs"]
[null,"Position","Hourly","Leave","Fam Resp","Sick","Public","Severance","PI","Uniforms","Transport","Hourly Rate","UIF","COID","Skills","Statutory","Total Cost","Operations","Management Fee","Total","Unconditional/Trade discounts","Total Hourly Charge Including all fees (less unconditional discounts)"]
[null,null,"Rate","Pay","Leave","Leave","Holiday","Pay","Cover",null,null,"Including",null,"/WCA","Dev","Costs","of Employee","Cost",null,"Hourly Charge"]
[null,null,"Paid to","Provision","Provision","Provision","Provision",{"$nulls":4},"Employee",null,null,"Levy","Sub Total",{"$nulls":3},"Including"]
[null,null,"Employee",{"$nulls":8},"Benefits",{"$nulls":7},"all fees"]
[null,"Chef de partie",{"$nulls":9},{"$f":"SUM(C20:K20)","v":{"v":0,"d":"R 0.00"}},{"$nulls":3},{"$f":"SUM(M20:O20)","v":{"v":0,"d":"R 0.00"}},{"$f":"+L20+P20","v":{"v":0,"d":"R 0.00"}},null,null,{"$f":"SUM($Q20:$S20)","v":{"v":0,"d":"R 0.00"}},null,{"$f":"T20-U20","v":{"v":0,"d":"R 0.00"}}]
[null,"Stores Assistant",{"$nulls":9},{"$f":"SUM(C21:K21)","v":{"v":0,"d":"R 0.00"}},{"$nulls":3},{"$f":"SUM(M21:O21)","v":{"v":0,"d":"R 0.00"}},{"$f":"+L21+P21","v":{"v":0,"d":"R 0.00"}},null,null,{"$f":"SUM($Q21:$S21)","v":{"v":0,"d":"R 0.00"}},null,{"$f":"T21-U21","v":{"v":0,"d":"R 0.00"}}]
[null,"Food & Beverage Buyer",{"$nulls":9},{"v":0,"d":"R 0.00"},{"$nulls":3},{"v":0,"d":"R 0.00"},{"v":0,"d":"R 0.00"},null,null,{"$f":"SUM($Q22:$S22)","v":{"v":0,"d":"R 0.00"}},null,{"v":0,"d":"R 0.00"}]
[null,"Receptionist",{"$nulls":9},{"v":0,"d":"R 0.00"},{"$nulls":3},{"v":0,"d":"R 0.00"},{"v":0,"d":"R 0.00"},null,null,{"v":0,"d":"R 0.00"},null,{"v":0,"d":"R 0.00"}]
[null,"Parking  Marshall",{"$nulls":9},{"v":0,"d":"R 0.00"},{"$nulls":3},{"v":0,"d":"R 0.00"},{"v":0,"d":"R 0.00"},null,null,{"v":0,"d":"R 0.00"},null,{"v":0,"d":"R 0.00"}]
[null,"Laundry Staff",{"$nulls":9},{"v":0,"d":"R 0.00"},{"$nulls":3},{"v":0,"d":"R 0.00"},{"v":0,"d":"R 0.00"},null,null,{"v":0,"d":"R 0.00"},null,{"v":0,"d":"R 0.00"}]
[null,"Food Service assistants",{"$nulls":9},{"v":0,"d":"R 0.00"},{"$nulls":3},{"v":0,"d":"R 0.00"},{"v":0,"d":"R 0.00"},null,null,{"v":0,"d":"R 0.00"},null,{"v":0,"d":"R 0.00"}]
[null,"Safety Administrative Assistant",{"$nulls":9},{"v":0,"d":"R 0.00"},{"$nulls":3},{"v":0,"d":"R 0.00"},{"v":0,"d":"R 0.00"},null,null,{"v":0,"d":"R 0.00"},null,{"v":0,"d":"R 0.00"}]
[null,"Housemen",{"$nulls":9},{"v":0,"d":"R 0.00"},{"$nulls":3},{"v":0,"d":"R 0.00"},{"v":0,"d":"R 0.00"},null,null,{"v":0,"d":"R 0.00"},null,{"v":0,"d":"R 0.00"}]
[null,"Cleaning Staff",{"$nulls":9},{"v":0,"d":"R 0.00"},{"$nulls":3},{"v":0,"d":"R 0.00"},{"v":0,"d":"R 0.00"},null,null,{"v":0,"d":"R 0.00"},null,{"v":0,"d":"R 0.00"}]
[null,"Commi Chef",{"$nulls":9},{"v":0,"d":"R 0.00"},{"$nulls":3},{"v":0,"d":"R 0.00"},{"v":0,"d":"R 0.00"},null,null,{"v":0,"d":"R 0.00"},null,{"v":0,"d":"R 0.00"}]
[null," Sous Chef",{"$nulls":9},{"v":0,"d":"R 0.00"},{"$nulls":3},{"v":0,"d":"R 0.00"},{"v":0,"d":"R 0.00"},null,null,{"v":0,"d":"R 0.00"},null,{"v":0,"d":"R 0.00"}]
[null,"Events coordinator",{"$nulls":9},{"v":0,"d":"R 0.00"},{"$nulls":3},{"v":0,"d":"R 0.00"},{"v":0,"d":"R 0.00"},null,null,{"v":0,"d":"R 0.00"},null,{"v":0,"d":"R 0.00"}]
[null,"Marketing coordinator",{"$nulls":9},{"v":0,"d":"R 0.00"},{"$nulls":3},{"v":0,"d":"R 0.00"},{"v":0,"d":"R 0.00"},null,null,{"v":0,"d":"R 0.00"},null,{"v":0,"d":"R 0.00"}]
[null,"Waitron & Barmen ",{"$nulls":9},{"v":0,"d":"R 0.00"},{"$nulls":3},{"v":0,"d":"R 0.00"},{"v":0,"d":"R 0.00"},null,null,{"v":0,"d":"R 0.00"},null,{"v":0,"d":"R 0.00"}]
[null,"Waste sorter",{"$nulls":9},{"v":0,"d":"R 0.00"},{"$nulls":3},{"v":0,"d":"R 0.00"},{"v":0,"d":"R 0.00"},null,null,{"v":0,"d":"R 0.00"},null,{"v":0,"d":"R 0.00"}]
[null," Golf cart / shuttle driver",{"$nulls":9},{"v":0,"d":"R 0.00"},{"$nulls":3},{"v":0,"d":"R 0.00"},{"v":0,"d":"R 0.00"},null,null,{"v":0,"d":"R 0.00"},null,{"v":0,"d":"R 0.00"}]
[]
[]
[null,"Definition of discounts"]
[]
[null,"A settlement discount is where a business offers the CSIR a discount when an invoice is paid on time or within 45 days from receipt of statement."]
[]
[null,"A trade discount is defined as a type of discount that is cut off the retail or proposal price of an item. The discount is immediately deducted from the proposal price"]
[]
[]
[null,"Notes:"]

{"sheet":"Year 4","index":3,"n_rows":46,"n_cols":22,"rows_kept":46,"merged":[[2,1,2,18],[3,1,3,18],[4,1,4,18],[8,1,8,18],[9,1,9,18],[12,2,12,18],[14,3,14,10],[14,12,14,14],[15,1,18,1],[15,18,18,18],[15,20,18,20],[15,21,18,21],[45,1,50,19]]}
[]
[]
[null,"ANNEXURE D - PRICING SCHEDULE"]
[null,"The Appointment of Service Provider to Provide Seasonal Casual Workers at the CSIR Conferencing and Accommodation on an “As and When” Required Basis for a Period of Five (05) years"]
[null,"RFP 0000/15/08/2025"]
[]
[]
[]
[null,"Notes:\n1. Bidders must note the detailed scope of services as outlined in the RFP document.\n2. CSIR reserves the right to negotiate rates with the recommended bidder.\n3. The rates MUST be inclusive of all service offering for Year 1-5 (Information must be populated in year 1 to year 5 sheets). \n4.This is a competitive bidding process, and the most competitive bidders will be considered for the appointment\n5. Bidders can provide comments, assumptions and any points of clarification on a separate letter as an Annexure to their pricing submission, and this should be done in their company letterhead. (Comments, assumptions and any points of clarification must be attached to the pricing template)\n6. Bidders are not allowed to change the format of this pricing template; any changes to the template by the bidders may result in their bid being non-responsive.\n"]
[]
[]
[]
[null,"BIDDER'S NAME:"]
[]
[{"$nulls":3},"Employee Benefits",{"$nulls":8},"Statutory Costs"]
[null,"Position","Hourly","Leave","Fam Resp","Sick","Public","Severance","PI","Uniforms","Transport","Hourly Rate","UIF","COID","Skills","Statutory","Total Cost","Operations","Management Fee","Total","Unconditional/Trade discounts","Total Hourly Charge Including all fees (less unconditional discounts)"]
[null,null,"Rate","Pay","Leave","Leave","Holiday","Pay","Cover",null,null,"Including",null,"/WCA","Dev","Costs","of Employee","Cost",null,"Hourly Charge"]
[null,null,"Paid to","Provision","Provision","Provision","Provision",{"$nulls":4},"Employee",null,null,"Levy","Sub Total",{"$nulls":3},"Including"]
[null,null,"Employee",{"$nulls":8},"Benefits",{"$nulls":7},"all fees"]
[null,"Chef de partie",{"$nulls":9},{"$f":"SUM(C20:K20)","v":{"v":0,"d":"R 0.00"}},{"$nulls":3},{"$f":"SUM(M20:O20)","v":{"v":0,"d":"R 0.00"}},{"$f":"+L20+P20","v":{"v":0,"d":"R 0.00"}},null,null,{"$f":"SUM($Q20:$S20)","v":{"v":0,"d":"R 0.00"}},null,{"$f":"T20-U20","v":{"v":0,"d":"R 0.00"}}]
[null,"Stores Assistant",{"$nulls":9},{"$f":"SUM(C21:K21)","v":{"v":0,"d":"R 0.00"}},{"$nulls":3},{"$f":"SUM(M21:O21)","v":{"v":0,"d":"R 0.00"}},{"$f":"+L21+P21","v":{"v":0,"d":"R 0.00"}},null,null,{"$f":"SUM($Q21:$S21)","v":{"v":0,"d":"R 0.00"}},null,{"$f":"T21-U21","v":{"v":0,"d":"R 0.00"}}]
[null,"Food & Beverage Buyer",{"$nulls":9},{"v":0,"d":"R 0.00"},{"$nulls":3},{"v":0,"d":"R 0.00"},{"v":0,"d":"R 0.00"},null,null,{"$f":"SUM($Q22:$S22)","v":{"v":0,"d":"R 0.00"}},null,{"v":0,"d":"R 0.00"}]
[null,"Receptionist",{"$nulls":9},{"v":0,"d":"R 0.00"},{"$nulls":3},{"v":0,"d":"R 0.00"},{"v":0,"d":"R 0.00"},null,null,{"v":0,"d":"R 0.00"},null,{"v":0,"d":"R 0.00"}]
[null,"Parking  Marshall",{"$nulls":9},{"v":0,"d":"R 0.00"},{"$nulls":3},{"v":0,"d":"R 0.00"},{"v":0,"d":"R 0.00"},null,null,{"v":0,"d":"R 0.00"},null,{"v":0,"d":"R 0.00"}]
[null,"Laundry Staff",{"$nulls":9},{"v":0,"d":"R 0.00"},{"$nulls":3},{"v":0,"d":"R 0.00"},{"v":0,"d":"R 0.00"},null,null,{"v":0,"d":"R 0.00"},null,{"v":0,"d":"R 0.00"}]
[null,"Food Service assistants",{"$nulls":9},{"v":0,"d":"R 0.00"},{"$nulls":3},{"v":0,"d":"R 0.00"},{"v":0,"d":"R 0.00"},null,null,{"v":0,"d":"R 0.00"},null,{"v":0,"d":"R 0.00"}]
[null,"Safety Administrative Assistant",{"$nulls":9},{"v":0,"d":"R 0.00"},{"$nulls":3},{"v":0,"d":"R 0.00"},{"v":0,"d":"R 0.00"},null,null,{"v":0,"d":"R 0.00"},null,{"v":0,"d":"R 0.00"}]
[null,"Housemen",{"$nulls":9},{"v":0,"d":"R 0.00"},{"$nulls":3},{"v":0,"d":"R 0.00"},{"v":0,"d":"R 0.00"},null,null,{"v":0,"d":"R 0.00"},null,{"v":0,"d":"R 0.00"}]
[null,"Cleaning Staff",{"$nulls":9},{"v":0,"d":"R 0.00"},{"$nulls":3},{"v":0,"d":"R 0.00"},{"v":0,"d":"R 0.00"},null,null,{"v":0,"d":"R 0.00"},null,{"v":0,"d":"R 0.00"}]
[null,"Commi Chef",{"$nulls":9},{"v":0,"d":"R 0.00"},{"$nulls":3},{"v":0,"d":"R 0.00"},{"v":0,"d":"R 0.00"},null,null,{"v":0,"d":"R 0.00"},null,{"v":0,"d":"R 0.00"}]
[null," Sous Chef",{"$nulls":9},{"v":0,"d":"R 0.00"},{"$nulls":3},{"v":0,"d":"R 0.00"},{"v":0,"d":"R 0.00"},null,null,{"v":0,"d":"R 0.00"},null,{"v":0,"d":"R 0.00"}]
[null,"Events coordinator",{"$nulls":9},{"v":0,"d":"R 0.00"},{"$nulls":3},{"v":0,"d":"R 0.00"},{"v":0,"d":"R 0.00"},null,null,{"v":0,"d":"R 0.00"},null,{"v":0,"d":"R 0.00"}]
[null,"Marketing coordinator",{"$nulls":9},{"v":0,"d":"R 0.00"},{"$nulls":3},{"v":0,"d":"R 0.00"},{"v":0,"d":"R 0.00"},null,null,{"v":0,"d":"R 0.00"},null,{"v":0,"d":"R 0.00"}]
[null,"Waitron & Barmen ",{"$nulls":9},{"v":0,"d":"R 0.00"},{"$nulls":3},{"v":0,"d":"R 0.00"},{"v":0,"d":"R 0.00"},null,null,{"v":0,"d":"R 0.00"},null,{"v":0,"d":"R 0.00"}]
[null,"Waste sorter",{"$nulls":9},{"v":0,"d":"R 0.00"},{"$nulls":3},{"v":0,"d":"R 0.00"},{"v":0,"d":"R 0.00"},null,null,{"v":0,"d":"R 0.00"},null,{"v":0,"d":"R 0.00"}]
[null," Golf cart / shuttle driver",{"$nulls":9},{"v":0,"d":"R 0.00"},{"$nulls":3},{"v":0,"d":"R 0.00"},{"v":0,"d":"R 0.00"},null,null,{"v":0,"d":"R 0.00"},null,{"v":0,"d":"R 0.00"}]
[]
[]
[null,"Definition of discounts"]
[]
[null,"A settlement discount is where a business offers the CSIR a discount when an invoice is paid on time or within 45 days from receipt of statement."]
[]
[null,"A trade discount is defined as a type of discount that is cut off the retail or proposal price of an item. The discount is immediately deducted from the proposal price"]
[]
[]
[null,"Notes:"]

{"sheet":"Year 5","index":4,"n_rows":46,"n_cols":22,"rows_kept":46,"merged":[[2,1,2,18],[3,1,3,18],[4,1,4,18],[8,1,8,18],[9,1,9,18],[12,2,12,18],[14,3,14,10],[14,12,14,14],[15,1,18,1],[15,18,18,18],[15,20,18,20],[15,21,18,21],[45,1,50,19]]}
[]
[]
[null,"ANNEXURE D - PRICING SCHEDULE"]
[null,"The Appointment of Service Provider to Provide Seasonal Casual Workers at the CSIR Conferencing and Accommodation on an “As and When” Required Basis for a Period of Five (05) years"]
[null,"RFP 0000/15/08/2025"]
[]
[]
[]
[null,"Notes:\n1. Bidders must note the detailed scope of services as outlined in the RFP document.\n2. CSIR reserves the right to negotiate rates with the recommended bidder.\n3. The rates MUST be inclusive of all service offering for Year 1-5 (Information must be populated in year 1 to year 5 sheets). \n4.This is a competitive bidding process, and the most competitive bidders will be considered for the appointment\n5. Bidders can provide comments, assumptions and any points of clarification on a separate letter as an Annexure to their pricing submission, and this should be done in their company letterhead. (Comments, assumptions and any points of clarification must be attached to the pricing template)\n6. Bidders are not allowed to change the format of this pricing template; any changes to the template by the bidders may result in their bid being non-responsive.\n"]
[]
[]
[]
[null,"BIDDER'S NAME:"]
[]
[{"$nulls":3},"Employee Benefits",{"$nulls":8},"Statutory Costs"]
[null,"Position","Hourly","Leave","Fam Resp","Sick","Public","Severance","PI","Uniforms","Transport","Hourly Rate","UIF","COID","Skills","Statutory","Total Cost","Operations","Management Fee","Total","Unconditional/Trade discounts","Total Hourly Charge Including all fees (less unconditional discounts)"]
[null,null,"Rate","Pay","Leave","Leave","Holiday","Pay","Cover",null,null,"Including",null,"/WCA","Dev","Costs","of Employee","Cost",null,"Hourly Charge"]
[null,null,"Paid to","Provision","Provision","Provision","Provision",{"$nulls":4},"Employee",null,null,"Levy","Sub Total",{"$nulls":3},"Including"]
[null,null,"Employee",{"$nulls":8},"Benefits",{"$nulls":7},"all fees"]
[null,"Chef de partie",{"$nulls":9},{"$f":"SUM(C20:K20)","v":{"v":0,"d":"R 0.00"}},{"$nulls":3},{"$f":"SUM(M20:O20)","v":{"v":0,"d":"R 0.00"}},{"$f":"+L20+P20","v":{"v":0,"d":"R 0.00"}},null,null,{"$f":"SUM($Q20:$S20)","v":{"v":0,"d":"R 0.00"}},null,{"$f":"T20-U20","v":{"v":0,"d":"R 0.00"}}]
[null,"Stores Assistant",{"$nulls":9},{"$f":"SUM(C21:K21)","v":{"v":0,"d":"R 0.00"}},{"$nulls":3},{"$f":"SUM(M21:O21)","v":{"v":0,"d":"R 0.00"}},{"$f":"+L21+P21","v":{"v":0,"d":"R 0.00"}},null,null,{"$f":"SUM($Q21:$S21)","v":{"v":0,"d":"R 0.00"}},null,{"$f":"T21-U21","v":{"v":0,"d":"R 0.00"}}]
[null,"Food & Beverage Buyer",{"$nulls":9},{"v":0,"d":"R 0.00"},{"$nulls":3},{"v":0,"d":"R 0.00"},{"v":0,"d":"R 0.00"},null,null,{"$f":"SUM($Q22:$S22)","v":{"v":0,"d":"R 0.00"}},null,{"v":0,"d":"R 0.00"}]
[null,"Receptionist",{"$nulls":9},{"v":0,"d":"R 0.00"},{"$nulls":3},{"v":0,"d":"R 0.00"},{"v":0,"d":"R 0.00"},null,null,{"v":0,"d":"R 0.00"},null,{"v":0,"d":"R 0.00"}]
[null,"Parking  Marshall",{"$nulls":9},{"v":0,"d":"R 0.00"},{"$nulls":3},{"v":0,"d":"R 0.00"},{"v":0,"d":"R 0.00"},null,null,{"v":0,"d":"R 0.00"},null,{"v":0,"d":"R 0.00"}]
[null,"Laundry Staff",{"$nulls":9},{"v":0,"d":"R 0.00"},{"$nulls":3},{"v":0,"d":"R 0.00"},{"v":0,"d":"R 0.00"},null,null,{"v":0,"d":"R 0.00"},null,{"v":0,"d":"R 0.00"}]
[null,"Food Service assistants",{"$nulls":9},{"v":0,"d":"R 0.00"},{"$nulls":3},{"v":0,"d":"R 0.00"},{"v":0,"d":"R 0.00"},null,null,{"v":0,"d":"R 0.00"},null,{"v":0,"d":"R 0.00"}]
[null,"Safety Administrative Assistant",{"$nulls":9},{"v":0,"d":"R 0.00"},{"$nulls":3},{"v":0,"d":"R 0.00"},{"v":0,"d":"R 0.00"},null,null,{"v":0,"d":"R 0.00"},null,{"v":0,"d":"R 0.00"}]
[null,"Housemen",{"$nulls":9},{"v":0,"d":"R 0.00"},{"$nulls":3},{"v":0,"d":"R 0.00"},{"v":0,"d":"R 0.00"},null,null,{"v":0,"d":"R 0.00"},null,{"v":0,"d":"R 0.00"}]
[null,"Cleaning Staff",{"$nulls":9},{"v":0,"d":"R 0.00"},{"$nulls":3},{"v":0,"d":"R 0.00"},{"v":0,"d":"R 0.00"},null,null,{"v":0,"d":"R 0.00"},null,{"v":0,"d":"R 0.00"}]
[null,"Commi Chef",{"$nulls":9},{"v":0,"d":"R 0.00"},{"$nulls":3},{"v":0,"d":"R 0.00"},{"v":0,"d":"R 0.00"},null,null,{"v":0,"d":"R 0.00"},null,{"v":0,"d":"R 0.00"}]
[null," Sous Chef",{"$nulls":9},{"v":0,"d":"R 0.00"},{"$nulls":3},{"v":0,"d":"R 0.00"},{"v":0,"d":"R 0.00"},null,null,{"v":0,"d":"R 0.00"},null,{"v":0,"d":"R 0.00"}]
[null,"Events coordinator",{"$nulls":9},{"v":0,"d":"R 0.00"},{"$nulls":3},{"v":0,"d":"R 0.00"},{"v":0,"d":"R 0.00"},null,null,{"v":0,"d":"R 0.00"},null,{"v":0,"d":"R 0.00"}]
[null,"Marketing coordinator",{"$nulls":9},{"v":0,"d":"R 0.00"},{"$nulls":3},{"v":0,"d":"R 0.00"},{"v":0,"d":"R 0.00"},null,null,{"v":0,"d":"R 0.00"},null,{"v":0,"d":"R 0.00"}]
[null,"Waitron & Barmen ",{"$nulls":9},{"v":0,"d":"R 0.00"},{"$nulls":3},{"v":0,"d":"R 0.00"},{"v":0,"d":"R 0.00"},null,null,{"v":0,"d":"R 0.00"},null,{"v":0,"d":"R 0.00"}]
[null,"Waste sorter",{"$nulls":9},{"v":0,"d":"R 0.00"},{"$nulls":3},{"v":0,"d":"R 0.00"},{"v":0,"d":"R 0.00"},null,null,{"v":0,"d":"R 0.00"},null,{"v":0,"d":"R 0.00"}]
[null," Golf cart / shuttle driver",{"$nulls":9},{"v":0,"d":"R 0.00"},{"$nulls":3},{"v":0,"d":"R 0.00"},{"v":0,"d":"R 0.00"},null,null,{"v":0,"d":"R 0.00"},null,{"v":0,"d":"R 0.00"}]
[]
[]
[null,"Definition of discounts"]
[]
[null,"A settlement discount is where a business offers the CSIR a discount when an invoice is paid on time or within 45 days from receipt of statement."]
[]
[null,"A trade discount is defined as a type of discount that is cut off the retail or proposal price of an item. The discount is immediately deducted from the proposal price"]
[]
[]
[null,"Notes:"]